fUSD/lending_fUSD_20260602
["ID","MTS","AMOUNT","RATE_DAILY","PERIOD"]
[423741488,1780361472000,-4282.94769063,0.00012287,2]
[423741489,1780361472000,-694.63749847,0.00012287,2]
[423741491,1780361472000,-940.68,0.00012329,2]
[423741486,1780361472000,-1897.4694781,0.00012287,2]
[423741490,1780361472000,-11288.55401591,0.00012287,2]
[423741493,1780361472000,-1200.6917857,0.00012331,2]
[423741494,1780361472000,-114944.552005,0.00012331,2]
[423741495,1780361472000,-500.0,0.00012331,2]
[423741498,1780361472000,-500.0,0.00012331,2]
[423741497,1780361472000,-500.0,0.00012331,2]
[423741496,1780361472000,-500.0,0.00012331,2]
[423741499,1780361472000,-500.0,0.00012331,2]
[423741492,1780361472000,-1062.8810004,0.00012331,2]
[423741500,1780361472000,-500.0,0.00012331,2]
[423741537,1780361473000,-500.0,0.00012424,2]
[423741531,1780361473000,-500.0,0.00012424,2]
[423741530,1780361473000,-399.879993,0.00012331,2]
[423741529,1780361473000,-399.879993,0.00012331,2]
[423741532,1780361473000,-500.0,0.00012424,2]
[423741533,1780361473000,-500.0,0.00012424,2]
[423741536,1780361473000,-500.0,0.00012424,2]
[423741534,1780361473000,-500.0,0.00012424,2]
[423741535,1780361473000,-500.0,0.00012424,2]
[423741538,1780361473000,-500.0,0.00012424,2]
[423741547,1780361473000,-350.0,0.00012612,2]
[423741540,1780361473000,-152.0,0.00012466,2]
[423741542,1780361473000,-152.0,0.00012486,2]
[423741541,1780361473000,-152.0,0.00012486,2]
[423741550,1780361473000,-399.879993,0.00012613,2]
[423741545,1780361473000,-151.0,0.00012545,2]
[423741544,1780361473000,-42988.91589883,0.00012528,2]
[423741543,1780361473000,-350.0,0.00012524,2]
[423741546,1780361473000,-154.62866993,0.00012548,2]
[423741528,1780361473000,-399.879993,0.00012331,2]
[423741548,1780361473000,-6637.0043698,0.00012612,2]
[423741539,1780361473000,-256.0,0.00012424,2]
[423741527,1780361473000,-399.879993,0.00012331,2]
[423741515,1780361473000,-500.0,0.00012331,2]
[423741526,1780361473000,-298.342053,0.00012331,2]
[423741549,1780361473000,-399.879993,0.00012613,2]
[423741504,1780361473000,-500.0,0.00012331,2]
[423741507,1780361473000,-500.0,0.00012331,2]
[423741503,1780361473000,-500.0,0.00012331,2]
[423741506,1780361473000,-500.0,0.00012331,2]
[423741505,1780361473000,-500.0,0.00012331,2]
[423741508,1780361473000,-500.0,0.00012331,2]
[423741509,1780361473000,-500.0,0.00012331,2]
[423741510,1780361473000,-500.0,0.00012331,2]
[423741512,1780361473000,-500.0,0.00012331,2]
[423741525,1780361473000,-500.0,0.00012331,2]
[423741511,1780361473000,-500.0,0.00012331,2]
[423741514,1780361473000,-500.0,0.00012331,2]
[423741516,1780361473000,-500.0,0.00012331,2]
[423741519,1780361473000,-500.0,0.00012331,2]
[423741517,1780361473000,-500.0,0.00012331,2]
[423741520,1780361473000,-500.0,0.00012331,2]
[423741518,1780361473000,-500.0,0.00012331,2]
[423741523,1780361473000,-500.0,0.00012331,2]
[423741524,1780361473000,-500.0,0.00012331,2]
[423741521,1780361473000,-500.0,0.00012331,2]
[423741522,1780361473000,-500.0,0.00012331,2]
[423741513,1780361473000,-500.0,0.00012331,2]
[423741552,1780361473000,-399.879993,0.00012613,2]
[423741602,1780361473000,-388.91059,0.00013267,3]
[423741553,1780361473000,-23488.46594208,0.00012613,2]
[423741580,1780361473000,-2000.0,0.000129,2]
[423741581,1780361473000,-350.0,0.00012909,2]
[423741583,1780361473000,-23488.46594208,0.0001294,2]
[423741582,1780361473000,-500.0,0.00012927,2]
[423741584,1780361473000,-399.879993,0.0001294,2]
[423741585,1780361473000,-399.879993,0.0001294,2]
[423741586,1780361473000,-399.879993,0.0001294,2]
[423741587,1780361473000,-399.879993,0.0001294,2]
[423741588,1780361473000,-151.0,0.00012953,2]
[423741589,1780361473000,-6637.0043698,0.00012994,2]
[423741579,1780361473000,-166.66,0.00012853,2]
[423741591,1780361473000,-249.63232626,0.00013002,7]
[423741592,1780361473000,-151.0,0.00013056,2]
[423741593,1780361473000,-263.022299,0.00013107,2]
[423741594,1780361473000,-42988.91589883,0.00013121,2]
[423741595,1780361473000,-1497.16,0.00013136,2]
[423741597,1780361473000,-1000.0,0.000132,2]
[423741598,1780361473000,-315.0,0.000132,2]
[423741596,1780361473000,-309.0,0.000132,2]
[423741599,1780361473000,-350.0,0.00013238,2]
[423741601,1780361473000,-23488.46594208,0.00013267,2]
[423741551,1780361473000,-399.879993,0.00012613,2]
[423741590,1780361473000,-334.26818468,0.00013002,7]
[423741578,1780361473000,-2000.0,0.00012853,2]
[423741600,1780361473000,-613.33,0.00013244,2]
[423741575,1780361473000,-2000.0,0.00012853,2]
[423741577,1780361473000,-2000.0,0.00012853,2]
[423741554,1780361473000,-152.63,0.00012624,2]
[423741555,1780361473000,-163.0,0.0001263,2]
[423741561,1780361473000,-253.00498968,0.00012711,2]
[423741560,1780361473000,-152.0,0.0001269,7]
[423741558,1780361473000,-299.53939165,0.00012641,7]
[423741559,1780361473000,-152.0,0.00012682,7]
[423741556,1780361473000,-163.0,0.0001263,2]
[423741562,1780361473000,-166.66,0.00012715,2]
[423741563,1780361473000,-151.0,0.00012749,2]
[423741564,1780361473000,-1083.75,0.00012749,2]
[423741557,1780361473000,-163.0,0.0001263,2]
[423741566,1780361473000,-191.25,0.00012825,2]
[423741567,1780361473000,-200.0,0.00012848,2]
[423741565,1780361473000,-42988.91589883,0.00012824,2]
[423741568,1780361473000,-200.0,0.00012849,2]
[423741570,1780361473000,-200.0,0.00012849,2]
[423741573,1780361473000,-2000.0,0.00012853,2]
[423741569,1780361473000,-200.0,0.00012849,2]
[423741571,1780361473000,-200.0,0.00012849,2]
[423741576,1780361473000,-2000.0,0.00012853,2]
[423741572,1780361473000,-200.0,0.00012849,2]
[423741574,1780361473000,-2000.0,0.00012853,2]
[423741635,1780361474000,-250.4499389,0.00013599,2]
[423741633,1780361474000,-23488.46594208,0.00013593,2]
[423741632,1780361474000,-500.0,0.00013558,2]
[423741631,1780361474000,-150.0,0.00013545,2]
[423741629,1780361474000,-5428.042,0.00013543,2]
[423741630,1780361474000,-2000.0,0.00013544,2]
[423741627,1780361474000,-166.66,0.0001349,2]
[423741628,1780361474000,-363.934,0.00013531,2]
[423741639,1780361474000,-150.0,0.00013638,2]
[423741640,1780361474000,-150.0,0.00013661,2]
[423741636,1780361474000,-150.0,0.00013603,2]
[423741637,1780361474000,-350.0,0.00013611,2]
[423741638,1780361474000,-1121.00514254,0.00013618,2]
[423741641,1780361474000,-151.0,0.00013669,2]
[423741642,1780361474000,-350.0,0.00013688,2]
[423741643,1780361474000,-151.0,0.00013695,2]
[423741644,1780361474000,-475.61764834,0.00013698,2]
[423741626,1780361474000,-150.0,0.00013488,2]
[423741646,1780361474000,-500.0,0.00013698,2]
[423741634,1780361474000,-5000.0,0.00013599,2]
[423741625,1780361474000,-150.0,0.00013488,2]
[423741616,1780361474000,-399.879993,0.00013438,2]
[423741622,1780361474000,-150.0,0.00013488,2]
[423741645,1780361474000,-500.0,0.00013698,2]
[423741604,1780361474000,-800.0,0.00013356,2]
[423741603,1780361474000,-161.05,0.00013313,2]
[423741605,1780361474000,-500.0,0.00013356,2]
[423741606,1780361474000,-350.0,0.00013358,2]
[423741608,1780361474000,-1161.0,0.00013365,5]
[423741607,1780361474000,-151.0,0.00013362,2]
[423741610,1780361474000,-350.0,0.00013408,2]
[423741609,1780361474000,-6637.0043698,0.00013375,2]
[423741623,1780361474000,-150.0,0.00013488,2]
[423741612,1780361474000,-35744.26571448,0.00013417,2]
[423741613,1780361474000,-929.0,0.00013438,5]
[423741614,1780361474000,-399.879993,0.00013438,2]
[423741615,1780361474000,-399.879993,0.00013438,2]
[423741618,1780361474000,-150.0,0.00013488,2]
[423741617,1780361474000,-399.879993,0.00013438,2]
[423741619,1780361474000,-223.02602026,0.00013488,2]
[423741621,1780361474000,-253.74994461,0.00013488,2]
[423741624,1780361474000,-150.0,0.00013488,2]
[423741620,1780361474000,-150.0,0.00013488,2]
[423741611,1780361474000,-7244.65018435,0.00013417,2]
[423741648,1780361474000,-500.0,0.00013698,2]
[423741649,1780361474000,-500.0,0.00013698,2]
[423741651,1780361474000,-500.0,0.00013698,2]
[423741675,1780361474000,-563.59,0.00013698,2]
[423741679,1780361474000,-822.85,0.00013698,2]
[423741677,1780361474000,-822.85,0.00013698,2]
[423741680,1780361474000,-822.85,0.00013698,2]
[423741678,1780361474000,-822.85,0.00013698,2]
[423741676,1780361474000,-563.59,0.00013698,2]
[423741681,1780361474000,-500.0,0.00013698,2]
[423741682,1780361474000,-500.0,0.00013698,2]
[423741684,1780361474000,-619.29,0.00013698,2]
[423741683,1780361474000,-230.64,0.00013698,2]
[423741686,1780361474000,-619.29,0.00013698,2]
[423741685,1780361474000,-619.29,0.00013698,2]
[423741687,1780361474000,-619.29,0.00013698,2]
[423741690,1780361474000,-500.0,0.00013698,2]
[423741689,1780361474000,-500.0,0.00013698,2]
[423741688,1780361474000,-500.0,0.00013698,2]
[423741691,1780361474000,-500.0,0.00013698,2]
[423741692,1780361474000,-500.0,0.00013698,2]
[423741647,1780361474000,-338.87344356,0.00013698,2]
[423741673,1780361474000,-563.59,0.00013698,2]
[423741674,1780361474000,-563.59,0.00013698,2]
[423741693,1780361474000,-500.0,0.00013698,2]
[423741668,1780361474000,-500.0,0.00013698,2]
[423741669,1780361474000,-500.0,0.00013698,2]
[423741652,1780361474000,-500.0,0.00013698,2]
[423741654,1780361474000,-500.0,0.00013698,2]
[423741653,1780361474000,-500.0,0.00013698,2]
[423741655,1780361474000,-500.0,0.00013698,2]
[423741657,1780361474000,-500.0,0.00013698,2]
[423741658,1780361474000,-645.18,0.00013698,2]
[423741656,1780361474000,-500.0,0.00013698,2]
[423741660,1780361474000,-645.18,0.00013698,2]
[423741659,1780361474000,-645.18,0.00013698,2]
[423741650,1780361474000,-500.0,0.00013698,2]
[423741661,1780361474000,-645.18,0.00013698,2]
[423741662,1780361474000,-500.0,0.00013698,2]
[423741671,1780361474000,-500.0,0.00013698,2]
[423741672,1780361474000,-502.02558638,0.00013698,2]
[423741667,1780361474000,-500.0,0.00013698,2]
[423741670,1780361474000,-268.09621544,0.00013698,2]
[423741665,1780361474000,-500.0,0.00013698,2]
[423741664,1780361474000,-295.39381884,0.00013698,2]
[423741663,1780361474000,-500.0,0.00013698,2]
[423741666,1780361474000,-500.0,0.00013698,2]
[423741719,1780361475000,-151.0,0.00013699,2]
[423741717,1780361475000,-151.0,0.00013699,2]
[423741720,1780361475000,-151.0,0.00013699,2]
[423741722,1780361475000,-151.0,0.00013699,2]
[423741723,1780361475000,-151.0,0.00013699,2]
[423741724,1780361475000,-151.0,0.00013699,2]
[423741721,1780361475000,-200.79945,0.00013699,2]
[423741716,1780361475000,-151.0,0.00013699,2]
[423741732,1780361475000,-151.0,0.00013699,2]
[423741725,1780361475000,-151.0,0.00013699,2]
[423741726,1780361475000,-151.0,0.00013699,2]
[423741730,1780361475000,-151.0,0.00013699,2]
[423741727,1780361475000,-151.0,0.00013699,2]
[423741731,1780361475000,-151.0,0.00013699,2]
[423741729,1780361475000,-151.0,0.00013699,2]
[423741728,1780361475000,-151.0,0.00013699,2]
[423741733,1780361475000,-151.0,0.00013699,2]
[423741715,1780361475000,-151.0,0.00013699,2]
[423741718,1780361475000,-151.0,0.00013699,2]
[423741707,1780361475000,-227.092168,0.00013699,2]
[423741702,1780361475000,-250.0,0.00013699,2]
[423741714,1780361475000,-227.092168,0.00013699,2]
[423741734,1780361475000,-151.0,0.00013699,2]
[423741695,1780361475000,-500.0,0.00013698,2]
[423741694,1780361475000,-500.0,0.00013698,2]
[423741696,1780361475000,-500.0,0.00013698,2]
[423741698,1780361475000,-500.0,0.00013698,2]
[423741697,1780361475000,-500.0,0.00013698,2]
[423741700,1780361475000,-991.91,0.00013698,2]
[423741703,1780361475000,-924.0,0.00013699,5]
[423741710,1780361475000,-227.092168,0.00013699,2]
[423741701,1780361475000,-991.91,0.00013698,2]
[423741704,1780361475000,-166.66,0.00013699,2]
[423741705,1780361475000,-200.0,0.00013699,2]
[423741706,1780361475000,-721.22,0.00013699,2]
[423741711,1780361475000,-227.092168,0.00013699,2]
[423741712,1780361475000,-227.092168,0.00013699,2]
[423741713,1780361475000,-227.092168,0.00013699,2]
[423741709,1780361475000,-227.092168,0.00013699,2]
[423741708,1780361475000,-227.092168,0.00013699,2]
[423741699,1780361475000,-991.91,0.00013698,2]
[423741735,1780361475000,-151.0,0.00013699,2]
[423741765,1780361475000,-246.483793,0.00013699,2]
[423741739,1780361475000,-151.0,0.00013699,2]
[423741757,1780361475000,-151.0,0.00013699,2]
[423741762,1780361475000,-151.0,0.00013699,2]
[423741763,1780361475000,-151.0,0.00013699,2]
[423741760,1780361475000,-151.0,0.00013699,2]
[423741764,1780361475000,-151.0,0.00013699,2]
[423741778,1780361475000,-151.0,0.00013699,2]
[423741766,1780361475000,-227.092168,0.00013699,2]
[423741768,1780361475000,-227.092168,0.00013699,2]
[423741761,1780361475000,-151.0,0.00013699,2]
[423741767,1780361475000,-227.092168,0.00013699,2]
[423741771,1780361475000,-227.092168,0.00013699,2]
[423741770,1780361475000,-227.092168,0.00013699,2]
[423741773,1780361475000,-227.092168,0.00013699,2]
[423741774,1780361475000,-227.092168,0.00013699,2]
[423741776,1780361475000,-227.092168,0.00013699,2]
[423741772,1780361475000,-227.092168,0.00013699,2]
[423741775,1780361475000,-227.092168,0.00013699,2]
[423741777,1780361475000,-227.092158,0.00013699,2]
[423741769,1780361475000,-227.092168,0.00013699,2]
[423741759,1780361475000,-151.0,0.00013699,2]
[423741736,1780361475000,-151.0,0.00013699,2]
[423741756,1780361475000,-151.0,0.00013699,2]
[423741738,1780361475000,-151.0,0.00013699,2]
[423741737,1780361475000,-151.0,0.00013699,2]
[423741740,1780361475000,-151.0,0.00013699,2]
[423741742,1780361475000,-151.0,0.00013699,2]
[423741741,1780361475000,-151.0,0.00013699,2]
[423741743,1780361475000,-151.0,0.00013699,2]
[423741744,1780361475000,-151.0,0.00013699,2]
[423741745,1780361475000,-151.0,0.00013699,2]
[423741746,1780361475000,-151.0,0.00013699,2]
[423741758,1780361475000,-151.0,0.00013699,2]
[423741747,1780361475000,-151.0,0.00013699,2]
[423741749,1780361475000,-151.0,0.00013699,2]
[423741751,1780361475000,-151.0,0.00013699,2]
[423741750,1780361475000,-151.0,0.00013699,2]
[423741752,1780361475000,-151.0,0.00013699,2]
[423741753,1780361475000,-151.0,0.00013699,2]
[423741755,1780361475000,-151.0,0.00013699,2]
[423741754,1780361475000,-151.0,0.00013699,2]
[423741748,1780361475000,-151.0,0.00013699,2]
[423741792,1780361476000,-150.0,0.00013718,2]
[423741795,1780361476000,-6637.0043698,0.00013756,2]
[423741793,1780361476000,-150.0,0.00013737,2]
[423741796,1780361476000,-150.0,0.00013776,2]
[423741801,1780361476000,-150.0,0.00013834,2]
[423741798,1780361476000,-150.0,0.00013787,2]
[423741799,1780361476000,-250.44993884,0.00013816,2]
[423741791,1780361476000,-42988.91589883,0.00013714,2]
[423741794,1780361476000,-151.0,0.00013745,2]
[423741790,1780361476000,-500.0,0.00013699,2]
[423741782,1780361476000,-399.879999,0.00013699,2]
[423741789,1780361476000,-500.0,0.00013699,2]
[423741785,1780361476000,-500.0,0.00013699,2]
[423741800,1780361476000,-500.0,0.00013832,2]
[423741786,1780361476000,-500.0,0.00013699,2]
[423741787,1780361476000,-500.0,0.00013699,2]
[423741784,1780361476000,-298.28908389,0.00013699,2]
[423741781,1780361476000,-399.879993,0.00013699,2]
[423741783,1780361476000,-500.0,0.00013699,2]
[423741779,1780361476000,-399.879993,0.00013699,2]
[423741780,1780361476000,-399.879993,0.00013699,2]
[423741788,1780361476000,-500.0,0.00013699,2]
[423741802,1780361476000,-166.66,0.00013836,2]
[423741797,1780361476000,-150.0,0.00013787,2]
[423741804,1780361476000,-10000.0,0.00013869,2]
[423741826,1780361476000,-1155.80116716,0.00013967,2]
[423741823,1780361476000,-769.0,0.00013967,2]
[423741825,1780361476000,-3285.0,0.00013967,2]
[423741824,1780361476000,-725.0,0.00013967,2]
[423741822,1780361476000,-4310.0,0.00013967,2]
[423741803,1780361476000,-350.0,0.00013842,2]
[423741821,1780361476000,-1121.00514254,0.00013961,2]
[423741817,1780361476000,-699.0,0.0001394,2]
[423741819,1780361476000,-3639.0,0.0001394,2]
[423741820,1780361476000,-150.0,0.00013949,2]
[423741816,1780361476000,-150.0,0.0001394,2]
[423741818,1780361476000,-485.906,0.0001394,2]
[423741814,1780361476000,-537.0,0.0001394,2]
[423741815,1780361476000,-1273.0,0.0001394,2]
[423741807,1780361476000,-2762.61,0.000139,2]
[423741809,1780361476000,-350.0,0.00013902,2]
[423741805,1780361476000,-150.0,0.00013891,2]
[423741806,1780361476000,-151.0,0.00013897,2]
[423741811,1780361476000,-150.0,0.00013937,2]
[423741810,1780361476000,-23488.46594208,0.0001392,2]
[423741808,1780361476000,-1327.65,0.000139,2]
[423741813,1780361476000,-3551.0,0.0001394,2]
[423741812,1780361476000,-929.0,0.0001394,2]
[423741827,1780361477000,-160.0,0.0001091,2]
[423741828,1780361512000,-227.45528215,0.00010982,2]
[423741829,1780361519000,152.0,0.00029753,120]
[423741830,1780361565000,-195.29676136,0.00011052,7]
[423741831,1780361618000,-250.0,0.00011092,2]
[423741834,1780361661000,500.0,0.00030137,120]
[423741838,1780361771000,300.0,0.00030137,120]
[423741839,1780361896000,-1000.0,0.00010671,2]
[423741843,1780361912000,-250.0,0.00010674,2]
[423741844,1780361912000,-4250.0,0.00010677,2]
[423741842,1780361912000,-500.0,0.00010674,2]
[423741845,1780361949000,-1852.42,0.00010528,2]
[423741846,1780361964000,-701.53,0.00010542,2]
[423741847,1780362003000,-200.0,0.00010555,2]
[423741848,1780362018000,-2410.88,0.00010559,2]
[423741854,1780362056000,-314.53019532,0.00010583,2]
[423741855,1780362072000,-593.4,0.00010609,2]
[423741856,1780362110000,-572.089966,0.00010555,2]
[423741858,1780362125000,-65.65015035,0.00010677,2]
[423741857,1780362125000,-150.0,0.00010664,2]
[423741859,1780362126000,163.45908516,0.0001,10]
[423741861,1780362163000,-212.19,0.00010554,2]
[423741862,1780362165000,315.22,0.00030137,120]
[423741863,1780362216000,-2000.0,0.00010591,2]
[423741864,1780362217000,627.12,0.00030082,120]
[423741865,1780362270000,-188.03398748,0.00010592,2]
[423741866,1780362323000,-209.68679688,0.00010492,2]
[423741867,1780362376000,-5353.04348406,0.00010587,2]
[423741871,1780362416000,152.0,0.00029775,120]
[423741876,1780362521000,200.0,0.00010066,2]
[423741877,1780362540000,2000.0,0.00030136,120]
[423741879,1780362602000,-2156.72,0.00010499,2]
[423741880,1780362616000,-152.4,0.00010553,2]
[423741881,1780362627000,2437.33,0.00010389,2]
[423741882,1780362630000,1000.0,0.00010389,2]
[423741886,1780362631000,-254.54357083,0.00010526,2]
[423741885,1780362631000,-209.68679686,0.00010453,2]
[423741888,1780362631000,-133.72305942,0.00010564,2]
[423741887,1780362631000,-245.45642917,0.00010526,2]
[423741889,1780362631000,-182.12931932,0.00010564,2]
[423741890,1780362631000,-281.98651594,0.00010587,2]
[423741891,1780362631000,-161.14808474,0.00010591,2]
[423741927,1780362638000,-500.0,0.00011211,2]
[423741925,1780362638000,-4.57326981,0.00011211,2]
[423741923,1780362638000,-500.0,0.00011211,2]
[423741924,1780362638000,-370.02626383,0.00011211,2]
[423741922,1780362638000,-500.0,0.00011211,2]
[423741918,1780362638000,-201.24,0.00011152,2]
[423741921,1780362638000,-500.0,0.00011211,2]
[423741920,1780362638000,-500.0,0.00011211,2]
[423741919,1780362638000,-150.0,0.00011211,2]
[423741909,1780362638000,-640.91673743,0.00010625,2]
[423741917,1780362638000,-152.4,0.00011081,2]
[423741915,1780362638000,-150.0,0.00010959,2]
[423741913,1780362638000,-152.4,0.00010817,2]
[423741914,1780362638000,-469.0247,0.00010952,2]
[423741911,1780362638000,-1319.03015875,0.00010625,2]
[423741912,1780362638000,-178.68,0.00010687,2]
[423741910,1780362638000,-1619.05310382,0.00010625,2]
[423741928,1780362638000,-500.0,0.00011211,2]
[423741907,1780362638000,-7.85191526,0.00010591,2]
[423741908,1780362638000,-1241.8,0.00010592,2]
[423741916,1780362638000,-150.0,0.00010959,2]
[423741932,1780362638000,-125.69094088,0.00011211,2]
[423741926,1780362638000,-495.42673019,0.00011211,2]
[423741931,1780362638000,-374.30905912,0.00011211,2]
[423741952,1780362638000,-500.0,0.00011211,2]
[423741951,1780362638000,-500.0,0.00011211,2]
[423741950,1780362638000,-500.0,0.00011211,2]
[423741948,1780362638000,-500.0,0.00011211,2]
[423741949,1780362638000,-500.0,0.00011211,2]
[423741946,1780362638000,-500.0,0.00011211,2]
[423741947,1780362638000,-500.0,0.00011211,2]
[423741945,1780362638000,-500.0,0.00011211,2]
[423741944,1780362638000,-44.59074193,0.00011211,2]
[423741941,1780362638000,-200.14189214,0.00011211,2]
[423741930,1780362638000,-95.42673019,0.00011211,2]
[423741942,1780362638000,-299.85810786,0.00011211,2]
[423741933,1780362638000,-500.0,0.00011211,2]
[423741935,1780362638000,-151.35418005,0.00011211,2]
[423741934,1780362638000,-348.64581995,0.00011211,2]
[423741937,1780362638000,-500.0,0.00011211,2]
[423741929,1780362638000,-404.57326981,0.00011211,2]
[423741940,1780362638000,-500.0,0.00011211,2]
[423741936,1780362638000,-500.0,0.00011211,2]
[423741939,1780362638000,-354.63497673,0.00011211,2]
[423741938,1780362638000,-145.36502327,0.00011211,2]
[423741943,1780362638000,-455.40925807,0.00011211,2]
[423741963,1780362639000,-201.24,0.00011522,2]
[423741955,1780362639000,-152.0,0.00011318,7]
[423741953,1780362639000,-201.24,0.00011213,2]
[423741954,1780362639000,-201.24,0.00011275,2]
[423741956,1780362639000,-201.24,0.00011337,2]
[423741957,1780362639000,-152.4,0.00011345,2]
[423741959,1780362639000,-201.24,0.00011399,2]
[423741960,1780362639000,-201.24,0.00011461,2]
[423741958,1780362639000,-269.3585395,0.00011377,7]
[423741966,1780362639000,-500.0,0.00011549,2]
[423741961,1780362639000,-209.68679686,0.00011484,2]
[423741969,1780362639000,-25119.26085263,0.00011551,2]
[423741968,1780362639000,-356.13008838,0.0001155,2]
[423741967,1780362639000,-333.83615093,0.0001155,2]
[423741965,1780362639000,-193.0,0.00011549,2]
[423741964,1780362639000,-183.26957442,0.00011549,2]
[423741962,1780362639000,-9329.88455676,0.00011484,2]
[423741973,1780362640000,-276592.22514737,0.00011551,2]
[423741975,1780362640000,-201.24,0.00011584,2]
[423741978,1780362640000,-292.94514206,0.00011702,7]
[423741979,1780362640000,-201.24,0.00011708,2]
[423741976,1780362640000,-152.4,0.00011609,2]
[423741977,1780362640000,-201.24,0.00011646,2]
[423741982,1780362640000,-160.0,0.00011745,2]
[423741984,1780362640000,-209.21103511,0.00011774,2]
[423741974,1780362640000,-250.0,0.00011579,2]
[423741983,1780362640000,-201.24,0.00011769,2]
[423741990,1780362640000,-201.24,0.00011955,2]
[423741993,1780362640000,-13726.16870228,0.00011984,2]
[423741992,1780362640000,-3456.2123891,0.00011984,2]
[423741985,1780362640000,-201.24,0.00011831,2]
[423741988,1780362640000,-2000.0,0.00011915,2]
[423741989,1780362640000,-1241.8,0.00011916,2]
[423741987,1780362640000,-201.24,0.00011893,2]
[423741991,1780362640000,-151.0,0.00011981,2]
[423741986,1780362640000,-9329.88455667,0.00011864,2]
[423742041,1780362655000,-5730.95119157,0.00011984,2]
[423742042,1780362669000,-23.1324403,0.00011984,2]
[423742051,1780362669000,-255.0,0.00012265,2]
[423742050,1780362669000,-201.24,0.00012264,2]
[423742043,1780362669000,-863.11764415,0.00011984,2]
[423742049,1780362669000,-9329.88455667,0.00012243,2]
[423742044,1780362669000,-107620.9494913,0.00011984,2]
[423742046,1780362669000,-201.24,0.00012078,2]
[423742048,1780362669000,-201.24,0.00012202,2]
[423742047,1780362669000,-201.24,0.0001214,2]
[423742045,1780362669000,-201.24,0.00012017,2]
[423742053,1780362669000,-627.12,0.00012329,2]
[423742052,1780362669000,-201.24,0.00012325,2]
[423742055,1780362669000,-11527.45654577,0.00012684,2]
[423742054,1780362669000,-9329.88455667,0.00012623,2]
[423742057,1780362670000,-633.85,0.00012757,2]
[423742056,1780362670000,-5668.10981378,0.00012684,2]
[423742059,1780362670000,-500.0,0.00012873,2]
[423742060,1780362670000,-322.156,0.000129,2]
[423742062,1780362670000,-8486.1446014,0.0001293,2]
[423742064,1780362670000,-280.87,0.0001293,2]
[423742061,1780362670000,-4558.032,0.00012927,2]
[423742058,1780362670000,-12378.98,0.00012757,2]
[423742067,1780362670000,-3049.57873674,0.0001293,2]
[423742066,1780362670000,-2034.61950838,0.0001293,2]
[423742065,1780362670000,-546.006,0.0001293,2]
[423742063,1780362670000,-1180.95304529,0.0001293,2]
[423742068,1780362687000,6894.50247102,0.000301,120]
[423742069,1780362708000,-227.45528215,0.00011722,2]
[423742070,1780362723000,-1208.06854515,0.0001184,2]
[423742071,1780362743000,-152.0,0.00011034,7]
[423742072,1780362758000,-300.0,0.00011839,2]
[423742076,1780362795000,-500.0,0.00011211,2]
[423742077,1780362812000,-160.0,0.00011211,2]
[423742079,1780362812000,-144.70323864,0.0001178,2]
[423742078,1780362812000,-195.29676136,0.00011255,7]
[423742081,1780362849000,-500.0,0.00011839,2]
[423742082,1780362864000,-500.0,0.00011779,2]